[Event "Titled Tuesday Blitz August 08 Early 2023"]
[White "Kanyamarala, Trisha"]
[Black "Shvedova, Alexandra"]
[WhiteFideId "45004722"]
[BlackFideId "54154782"]
[WhiteElo "2367"]
[BlackElo "2551"]
[Result "0-1"]
[Round "4"]
[TimeControl "180+1"]
[Date "2023.08.08"]
[WhiteClock "0:00:04"]
[BlackClock "0:00:27"]
[Board "145"]

1. b3 {[%clk 0:02:53]}  Nf6 {[%clk 0:02:58]} 2. Bb2 {[%clk 0:02:53]}  d5 {[%clk 0:02:59]} 3. g3 {[%clk 0:02:52]}  g6 {[%clk 0:02:59]} 4. Bg2 {[%clk 0:02:52]}  Bg7 {[%clk 0:02:59]} 5. Nf3 {[%clk 0:02:53]}  O-O {[%clk 0:03:00]} 6. O-O {[%clk 0:02:53]}  c5 {[%clk 0:03:00]} 7. d4 {[%clk 0:02:52]}  Ne4 {[%clk 0:02:54]} 8. Nbd2 {[%clk 0:02:49]}  Nc6 {[%clk 0:02:52]} 9. Ne5 {[%clk 0:02:43]}  Nxd4 {[%clk 0:02:43]} 10. Bxd4 {[%clk 0:02:07]}  cxd4 {[%clk 0:02:44]} 11. Nd3 {[%clk 0:02:02]}  Nc3 {[%clk 0:02:39]} 12. Qe1 {[%clk 0:02:01]}  e5 {[%clk 0:02:35]} 13. Nb1 {[%clk 0:01:55]}  e4 {[%clk 0:02:34]} 14. Nxc3 {[%clk 0:01:00]}  dxc3 {[%clk 0:02:35]} 15. Nc1 {[%clk 0:00:54]}  Qe7 {[%clk 0:02:22]} 16. e3 {[%clk 0:00:54]}  Bd7 {[%clk 0:02:18]} 17. Ne2 {[%clk 0:00:54]}  Rac8 {[%clk 0:02:18]} 18. Rd1 {[%clk 0:00:48]}  Be6 {[%clk 0:02:04]} 19. Nd4 {[%clk 0:00:42]}  Rfd8 {[%clk 0:02:03]} 20. Qe2 {[%clk 0:00:41]}  h5 {[%clk 0:01:58]} 21. f3 {[%clk 0:00:41]}  exf3 {[%clk 0:01:57]} 22. Bxf3 {[%clk 0:00:40]}  Bh3 {[%clk 0:01:55]} 23. Rfe1 {[%clk 0:00:37]}  Qe5 {[%clk 0:01:46]} 24. Qf2 {[%clk 0:00:27]}  Rd7 {[%clk 0:01:28]} 25. Ne2 {[%clk 0:00:16]}  Bf5 {[%clk 0:01:17]} 26. Nf4 {[%clk 0:00:16]}  Be4 {[%clk 0:01:17]} 27. Nd3 {[%clk 0:00:08]}  Qe6 {[%clk 0:01:11]} 28. Nf4 {[%clk 0:00:05]}  Qf5 {[%clk 0:01:09]} 29. Bxe4 {[%clk 0:00:05]}  dxe4 {[%clk 0:01:06]} 30. Rxd7 {[%clk 0:00:05]}  Qxd7 {[%clk 0:01:06]} 31. Qe2 {[%clk 0:00:05]}  Rd8 {[%clk 0:01:05]} 32. Ng2 {[%clk 0:00:05]}  Qd2 {[%clk 0:01:05]} 33. Nf4 {[%clk 0:00:05]}  a6 {[%clk 0:01:00]} 34. Ng2 {[%clk 0:00:03]}  Qxe2 {[%clk 0:00:58]} 35. Rxe2 {[%clk 0:00:03]}  Rd1+ {[%clk 0:00:57]} 36. Kf2 {[%clk 0:00:04]}  Ra1 {[%clk 0:00:56]} 37. a4 {[%clk 0:00:04]}  b5 {[%clk 0:00:56]} 38. axb5 {[%clk 0:00:04]}  axb5 {[%clk 0:00:57]} 39. Nf4 {[%clk 0:00:03]}  Be5 {[%clk 0:00:46]} 40. Nd5 {[%clk 0:00:04]}  Kg7 {[%clk 0:00:43]} 41. Ne7 {[%clk 0:00:04]}  h4 {[%clk 0:00:41]} 42. Nc6 {[%clk 0:00:03]}  hxg3+ {[%clk 0:00:41]} 43. hxg3 {[%clk 0:00:03]}  Bd6 {[%clk 0:00:40]} 44. Nd4 {[%clk 0:00:03]}  b4 {[%clk 0:00:39]} 45. Nb5 {[%clk 0:00:03]}  Be5 {[%clk 0:00:39]} 46. Nd4 {[%clk 0:00:03]}  Rh1 {[%clk 0:00:38]} 47. Kg2 {[%clk 0:00:03]}  Rd1 {[%clk 0:00:37]} 48. Nc6 {[%clk 0:00:03]}  Bd6 {[%clk 0:00:35]} 49. Na7 {[%clk 0:00:03]}  Rd2 {[%clk 0:00:33]} 50. Kf1 {[%clk 0:00:03]}  Bxg3 {[%clk 0:00:32]} 51. Nc6 {[%clk 0:00:03]}  Rd1+ {[%clk 0:00:31]} 52. Kg2 {[%clk 0:00:03]}  Bd6 {[%clk 0:00:31]} 53. Rf2 {[%clk 0:00:03]}  f5 {[%clk 0:00:30]} 54. Nd4 {[%clk 0:00:03]}  Kf6 {[%clk 0:00:25]} 55. Nb5 {[%clk 0:00:02]}  Be5 {[%clk 0:00:25]} 56. Na7 {[%clk 0:00:02]}  g5 {[%clk 0:00:25]} 57. Nc6 {[%clk 0:00:02]}  Bd6 {[%clk 0:00:26]} 58. Nd4 {[%clk 0:00:02]}  f4 {[%clk 0:00:26]} 59. exf4 {[%clk 0:00:01]}  Rxd4 {[%clk 0:00:25]} 60. fxg5+ {[%clk 0:00:01]}  Kxg5 {[%clk 0:00:26]} 61. Re2 {[%clk 0:00:01]}  Rd2 {[%clk 0:00:26]} 62. Kf1 {[%clk 0:00:01]}  Rxe2 {[%clk 0:00:24]} 63. Kxe2 {[%clk 0:00:02]}  Kf4 {[%clk 0:00:25]} 64. Kf2 {[%clk 0:00:03]}  e3+ {[%clk 0:00:25]} 65. Ke2 {[%clk 0:00:03]}  Ke4 {[%clk 0:00:26]} 66. Ke1 {[%clk 0:00:03]}  Kf3 {[%clk 0:00:26]} 67. Kf1 {[%clk 0:00:04]}  e2+ {[%clk 0:00:26]} 68. Ke1 {[%clk 0:00:04]}  Bg3# {[%clk 0:00:27]} 0-1


[Site "https://www.chess.com"]

[Event "Titled Tuesday Blitz August 08 Early 2023"]
[White "Camilla_Lee"]
[Black "Vaglio Munoz, Jaime"]
[BlackFideId "6500145"]
[WhiteElo "2544"]
[BlackElo "2243"]
[Result "1-0"]
[Round "4"]
[TimeControl "180+1"]
[Date "2023.08.08"]
[WhiteClock "0:00:41"]
[BlackClock "0:00:00"]
[Board "147"]

1. e4 {[%clk 0:03:00]}  c5 {[%clk 0:02:56]} 2. Nf3 {[%clk 0:03:00]}  Qa5 {[%clk 0:02:55]} 3. c4 {[%clk 0:02:50]}  Nc6 {[%clk 0:02:54]} 4. Nc3 {[%clk 0:02:49]}  g6 {[%clk 0:02:52]} 5. g3 {[%clk 0:02:46]}  Bg7 {[%clk 0:02:52]} 6. Bg2 {[%clk 0:02:46]}  d6 {[%clk 0:02:45]} 7. O-O {[%clk 0:02:45]}  Bg4 {[%clk 0:02:44]} 8. h3 {[%clk 0:02:40]}  Bxf3 {[%clk 0:02:44]} 9. Qxf3 {[%clk 0:02:41]}  Nd4 {[%clk 0:02:42]} 10. Qd1 {[%clk 0:02:41]}  Nf6 {[%clk 0:02:42]} 11. d3 {[%clk 0:02:36]}  O-O {[%clk 0:02:40]} 12. a3 {[%clk 0:02:28]}  Rab8 {[%clk 0:02:38]} 13. Rb1 {[%clk 0:02:29]}  a6 {[%clk 0:02:36]} 14. b4 {[%clk 0:02:28]}  Qc7 {[%clk 0:02:34]} 15. Be3 {[%clk 0:02:24]}  e5 {[%clk 0:02:33]} 16. f4 {[%clk 0:02:18]}  Nh5 {[%clk 0:02:31]} 17. Kh2 {[%clk 0:02:14]}  exf4 {[%clk 0:02:24]} 18. gxf4 {[%clk 0:02:14]}  f5 {[%clk 0:01:39]} 19. Nd5 {[%clk 0:02:08]}  Qd8 {[%clk 0:01:38]} 20. bxc5 {[%clk 0:02:04]}  dxc5 {[%clk 0:01:38]} 21. e5 {[%clk 0:02:04]}  g5 {[%clk 0:01:23]} 22. Qxh5 {[%clk 0:01:54]}  Ne6 {[%clk 0:01:17]} 23. fxg5 {[%clk 0:01:28]}  f4 {[%clk 0:01:17]} 24. Be4 {[%clk 0:01:09]}  Nxg5 {[%clk 0:01:15]} 25. Bxf4 {[%clk 0:01:01]}  Rxf4 {[%clk 0:01:09]} 26. Rxf4 {[%clk 0:00:56]}  Bxe5 {[%clk 0:01:08]} 27. Bxh7+ {[%clk 0:00:56]}  Kg7 {[%clk 0:01:02]} 28. Rg1 {[%clk 0:00:46]}  Qd6 {[%clk 0:00:16]} 29. Rxg5+ {[%clk 0:00:42]}  Kh8 {[%clk 0:00:00]} 30. Bf5+ {[%clk 0:00:41]} 1-0


[Site "https://www.chess.com"]

[Event "Titled Tuesday Blitz August 08 Early 2023"]
[White "Shukhman, Anna"]
[Black "Aepfler, Christian"]
[WhiteFideId "54180058"]
[BlackFideId "4628306"]
[WhiteElo "2528"]
[BlackElo "2086"]
[Result "1-0"]
[Round "4"]
[TimeControl "180+1"]
[Date "2023.08.08"]
[WhiteClock "0:01:27"]
[BlackClock "0:00:55"]
[Board "148"]

1. e4 {[%clk 0:03:00]}  e6 {[%clk 0:02:59]} 2. d4 {[%clk 0:02:59]}  d5 {[%clk 0:02:59]} 3. Nc3 {[%clk 0:03:00]}  dxe4 {[%clk 0:02:58]} 4. Nxe4 {[%clk 0:02:59]}  Bd7 {[%clk 0:02:59]} 5. Bd3 {[%clk 0:02:51]}  Bc6 {[%clk 0:02:59]} 6. Nf3 {[%clk 0:02:51]}  Nd7 {[%clk 0:02:59]} 7. Qe2 {[%clk 0:02:50]}  Ngf6 {[%clk 0:02:59]} 8. Ng3 {[%clk 0:02:45]}  Be7 {[%clk 0:02:48]} 9. Bd2 {[%clk 0:02:41]}  Bxf3 {[%clk 0:02:44]} 10. Qxf3 {[%clk 0:02:41]}  O-O {[%clk 0:02:41]} 11. O-O-O {[%clk 0:02:39]}  c5 {[%clk 0:02:41]} 12. dxc5 {[%clk 0:02:37]}  Nxc5 {[%clk 0:02:41]} 13. Bc3 {[%clk 0:02:38]}  Nxd3+ {[%clk 0:02:40]} 14. Rxd3 {[%clk 0:02:39]}  Qc7 {[%clk 0:02:33]} 15. Re1 {[%clk 0:02:22]}  Rac8 {[%clk 0:02:32]} 16. Qe2 {[%clk 0:02:09]}  Nd5 {[%clk 0:02:27]} 17. Rxd5 {[%clk 0:02:07]}  exd5 {[%clk 0:02:08]} 18. Qxe7 {[%clk 0:02:06]}  Qf4+ {[%clk 0:01:59]} 19. Qe3 {[%clk 0:01:46]}  Qg4 {[%clk 0:01:43]} 20. h3 {[%clk 0:01:39]}  Qg6 {[%clk 0:01:42]} 21. Qe5 {[%clk 0:01:29]}  Rfd8 {[%clk 0:00:55]} 22. Nf5 {[%clk 0:01:27]} 1-0


[Site "https://www.chess.com"]

[Event "Titled Tuesday Blitz August 08 Early 2023"]
[White "Mitrovic, Darko R"]
[Black "Megaranto, Susanto"]
[WhiteFideId "927023"]
[BlackFideId "7101384"]
[WhiteElo "2145"]
[BlackElo "2970"]
[Result "0-1"]
[Round "4"]
[TimeControl "180+1"]
[Date "2023.08.08"]
[WhiteClock "0:00:00"]
[BlackClock "0:01:35"]
[Board "149"]

1. d4 {[%clk 0:03:00]}  Nf6 {[%clk 0:02:58]} 2. Nf3 {[%clk 0:03:01]}  e6 {[%clk 0:02:59]} 3. g3 {[%clk 0:03:02]}  b5 {[%clk 0:02:58]} 4. Bg2 {[%clk 0:03:03]}  Bb7 {[%clk 0:02:58]} 5. O-O {[%clk 0:03:03]}  Be7 {[%clk 0:02:58]} 6. a4 {[%clk 0:03:02]}  b4 {[%clk 0:02:57]} 7. c4 {[%clk 0:02:59]}  O-O {[%clk 0:02:53]} 8. b3 {[%clk 0:02:57]}  a5 {[%clk 0:02:52]} 9. Nbd2 {[%clk 0:02:54]}  c5 {[%clk 0:02:51]} 10. Bb2 {[%clk 0:02:53]}  cxd4 {[%clk 0:02:50]} 11. Nxd4 {[%clk 0:02:51]}  Bxg2 {[%clk 0:02:49]} 12. Kxg2 {[%clk 0:02:51]}  d5 {[%clk 0:02:47]} 13. Nb5 {[%clk 0:02:45]}  Nc6 {[%clk 0:02:44]} 14. Rc1 {[%clk 0:02:41]}  Rc8 {[%clk 0:02:44]} 15. e3 {[%clk 0:02:35]}  Nd7 {[%clk 0:02:26]} 16. cxd5 {[%clk 0:02:23]}  exd5 {[%clk 0:02:27]} 17. Nf3 {[%clk 0:02:21]}  Nc5 {[%clk 0:02:25]} 18. Nfd4 {[%clk 0:02:13]}  Nxd4 {[%clk 0:02:22]} 19. Bxd4 {[%clk 0:02:04]}  Ne6 {[%clk 0:02:22]} 20. Qd2 {[%clk 0:01:51]}  Qd7 {[%clk 0:02:12]} 21. Rxc8 {[%clk 0:01:48]}  Rxc8 {[%clk 0:02:11]} 22. Rc1 {[%clk 0:01:48]}  Ng5 {[%clk 0:02:10]} 23. Rxc8+ {[%clk 0:01:23]}  Qxc8 {[%clk 0:02:11]} 24. Qd1 {[%clk 0:01:08]}  Qh3+ {[%clk 0:02:09]} 25. Kg1 {[%clk 0:01:07]}  h5 {[%clk 0:02:10]} 26. f4 {[%clk 0:00:46]}  Ne4 {[%clk 0:02:07]} 27. Bb6 {[%clk 0:00:31]}  h4 {[%clk 0:02:00]} 28. Qf1 {[%clk 0:00:24]}  Qg4 {[%clk 0:01:52]} 29. Bxa5 {[%clk 0:00:16]}  hxg3 {[%clk 0:01:51]} 30. hxg3 {[%clk 0:00:16]}  Qxg3+ {[%clk 0:01:50]} 31. Qg2 {[%clk 0:00:16]}  Qxe3+ {[%clk 0:01:50]} 32. Kh1 {[%clk 0:00:10]}  Qxf4 {[%clk 0:01:45]} 33. Bb6 {[%clk 0:00:08]}  Qh4+ {[%clk 0:01:40]} 34. Kg1 {[%clk 0:00:07]}  Qe1+ {[%clk 0:01:37]} 35. Kh2 {[%clk 0:00:07]}  Bf6 {[%clk 0:01:37]} 36. a5 {[%clk 0:00:05]}  Be5+ {[%clk 0:01:36]} 37. Kh3 {[%clk 0:00:00]}  Qd1 {[%clk 0:01:35]} 0-1


[Site "https://www.chess.com"]

[Event "Titled Tuesday Blitz August 08 Early 2023"]
[White "Zelbel, Patrick"]
[Black "Rom, Jasper"]
[WhiteFideId "24624322"]
[BlackFideId "2023733"]
[WhiteElo "2756"]
[BlackElo "2418"]
[Result "1-0"]
[Round "4"]
[TimeControl "180+1"]
[Date "2023.08.08"]
[WhiteClock "0:01:23"]
[BlackClock "0:00:00"]
[Board "150"]

1. e4 {[%clk 0:03:00]}  e6 {[%clk 0:02:54]} 2. b3 {[%clk 0:02:59]}  d5 {[%clk 0:02:48]} 3. Bb2 {[%clk 0:02:59]}  Nc6 {[%clk 0:02:46]} 4. d3 {[%clk 0:02:52]}  dxe4 {[%clk 0:02:44]} 5. Nd2 {[%clk 0:02:53]}  exd3 {[%clk 0:02:38]} 6. Bxd3 {[%clk 0:02:53]}  Nf6 {[%clk 0:02:38]} 7. Ngf3 {[%clk 0:02:53]}  Be7 {[%clk 0:02:29]} 8. O-O {[%clk 0:02:50]}  O-O {[%clk 0:02:29]} 9. a3 {[%clk 0:02:50]}  Nd5 {[%clk 0:02:21]} 10. Re1 {[%clk 0:02:50]}  Bf6 {[%clk 0:02:21]} 11. Bxf6 {[%clk 0:02:44]}  Nxf6 {[%clk 0:02:19]} 12. Qe2 {[%clk 0:02:40]}  Nd4 {[%clk 0:02:14]} 13. Nxd4 {[%clk 0:02:37]}  Qxd4 {[%clk 0:02:14]} 14. Nf3 {[%clk 0:02:38]}  Qg4 {[%clk 0:01:50]} 15. Qe5 {[%clk 0:02:34]}  Bd7 {[%clk 0:01:40]} 16. h3 {[%clk 0:02:27]}  Qh5 {[%clk 0:01:32]} 17. Qxc7 {[%clk 0:02:27]}  Bc6 {[%clk 0:01:31]} 18. Ne5 {[%clk 0:02:26]}  Bd5 {[%clk 0:01:31]} 19. c4 {[%clk 0:02:23]}  Rfc8 {[%clk 0:01:20]} 20. Qe7 {[%clk 0:02:18]}  Re8 {[%clk 0:01:18]} 21. Qb4 {[%clk 0:02:14]}  Bc6 {[%clk 0:01:09]} 22. Rad1 {[%clk 0:02:14]}  Rad8 {[%clk 0:01:00]} 23. Nxc6 {[%clk 0:01:51]}  bxc6 {[%clk 0:01:00]} 24. Be2 {[%clk 0:01:52]}  Qg5 {[%clk 0:00:24]} 25. Bf3 {[%clk 0:01:52]}  c5 {[%clk 0:00:22]} 26. Qa5 {[%clk 0:01:51]}  Rxd1 {[%clk 0:00:15]} 27. Rxd1 {[%clk 0:01:52]}  e5 {[%clk 0:00:10]} 28. Qxc5 {[%clk 0:01:51]}  h6 {[%clk 0:00:09]} 29. Re1 {[%clk 0:01:41]}  Qf4 {[%clk 0:00:09]} 30. Qe3 {[%clk 0:01:40]}  Qf5 {[%clk 0:00:09]} 31. Bc6 {[%clk 0:01:37]}  Re7 {[%clk 0:00:08]} 32. Qc5 {[%clk 0:01:37]}  Re6 {[%clk 0:00:02]} 33. Bd5 {[%clk 0:01:25]}  Re8 {[%clk 0:00:02]} 34. Qxa7 {[%clk 0:01:24]}  e4 {[%clk 0:00:00]} 35. Bxf7+ {[%clk 0:01:23]} 1-0


[Site "https://www.chess.com"]

[Event "Titled Tuesday Blitz August 08 Early 2023"]
[White "splendidkid"]
[Black "Psychonerd5"]
[WhiteElo "2725"]
[BlackElo "2416"]
[Result "1-0"]
[Round "4"]
[TimeControl "180+1"]
[Date "2023.08.08"]
[WhiteClock "0:00:50"]
[BlackClock "0:00:00"]
[Board "152"]

1. d4 {[%clk 0:03:00]}  Nf6 {[%clk 0:02:59]} 2. c4 {[%clk 0:02:53]}  e6 {[%clk 0:02:59]} 3. Nf3 {[%clk 0:02:53]}  b6 {[%clk 0:02:58]} 4. g3 {[%clk 0:02:53]}  Ba6 {[%clk 0:02:58]} 5. Qc2 {[%clk 0:02:52]}  Bb4+ {[%clk 0:02:58]} 6. Bd2 {[%clk 0:02:52]}  Be7 {[%clk 0:02:57]} 7. Bg2 {[%clk 0:02:51]}  d5 {[%clk 0:02:58]} 8. Ne5 {[%clk 0:02:48]}  O-O {[%clk 0:02:55]} 9. O-O {[%clk 0:02:48]}  c5 {[%clk 0:02:49]} 10. dxc5 {[%clk 0:02:40]}  bxc5 {[%clk 0:02:43]} 11. cxd5 {[%clk 0:02:37]}  exd5 {[%clk 0:02:44]} 12. Bf4 {[%clk 0:02:37]}  Nh5 {[%clk 0:02:25]} 13. Nc3 {[%clk 0:02:24]}  Nxf4 {[%clk 0:02:22]} 14. gxf4 {[%clk 0:02:25]}  Bb7 {[%clk 0:01:27]} 15. Rad1 {[%clk 0:02:21]}  Na6 {[%clk 0:01:14]} 16. Nxd5 {[%clk 0:01:44]}  Bh4 {[%clk 0:00:58]} 17. Qb3 {[%clk 0:01:33]}  Rb8 {[%clk 0:00:43]} 18. Qh3 {[%clk 0:01:20]}  Bc8 {[%clk 0:00:38]} 19. Qa3 {[%clk 0:01:17]}  Qe8 {[%clk 0:00:17]} 20. Kh1 {[%clk 0:01:06]}  f6 {[%clk 0:00:15]} 21. Nf3 {[%clk 0:01:03]}  g5 {[%clk 0:00:08]} 22. Qa5 {[%clk 0:00:56]}  Qxe2 {[%clk 0:00:02]} 23. Nxf6+ {[%clk 0:00:51]}  Rxf6 {[%clk 0:00:01]} 24. Qd8+ {[%clk 0:00:51]}  Rf8 {[%clk 0:00:01]} 25. Qd5+ {[%clk 0:00:51]}  Be6 {[%clk 0:00:00]} 26. Qd6 {[%clk 0:00:50]} 1-0


[Site "https://www.chess.com"]

[Event "Titled Tuesday Blitz August 08 Early 2023"]
[White "Bogaudinov, Rushan"]
[Black "Hulka, Valentyn"]
[WhiteFideId "4129288"]
[BlackFideId "34107061"]
[WhiteElo "2415"]
[BlackElo "2717"]
[Result "0-1"]
[Round "4"]
[TimeControl "180+1"]
[Date "2023.08.08"]
[WhiteClock "0:00:00"]
[BlackClock "0:00:11"]
[Board "153"]

1. d4 {[%clk 0:02:52]}  Nf6 {[%clk 0:02:58]} 2. c4 {[%clk 0:02:51]}  e6 {[%clk 0:02:58]} 3. Nf3 {[%clk 0:02:51]}  d5 {[%clk 0:02:57]} 4. e3 {[%clk 0:02:50]}  Be7 {[%clk 0:02:53]} 5. Nc3 {[%clk 0:02:50]}  O-O {[%clk 0:02:54]} 6. Be2 {[%clk 0:02:50]}  c5 {[%clk 0:02:54]} 7. O-O {[%clk 0:02:49]}  cxd4 {[%clk 0:02:54]} 8. Nxd4 {[%clk 0:02:49]}  b6 {[%clk 0:02:54]} 9. cxd5 {[%clk 0:02:48]}  exd5 {[%clk 0:02:48]} 10. b3 {[%clk 0:02:42]}  Bb7 {[%clk 0:02:43]} 11. Bb2 {[%clk 0:02:42]}  Ne4 {[%clk 0:02:43]} 12. Nxe4 {[%clk 0:02:35]}  dxe4 {[%clk 0:02:43]} 13. Nf5 {[%clk 0:02:34]}  Bf6 {[%clk 0:02:37]} 14. Qxd8 {[%clk 0:02:33]}  Rxd8 {[%clk 0:02:37]} 15. Bxf6 {[%clk 0:02:32]}  gxf6 {[%clk 0:02:37]} 16. Rfd1 {[%clk 0:02:27]}  Nd7 {[%clk 0:02:29]} 17. Rd6 {[%clk 0:02:11]}  Ne5 {[%clk 0:02:21]} 18. Rxf6 {[%clk 0:02:06]}  Rd2 {[%clk 0:02:21]} 19. Bh5 {[%clk 0:02:01]}  Rad8 {[%clk 0:02:18]} 20. h3 {[%clk 0:01:57]}  Bc8 {[%clk 0:02:06]} 21. Ng3 {[%clk 0:01:32]}  Bb7 {[%clk 0:01:52]} 22. Rc1 {[%clk 0:01:22]}  R8d7 {[%clk 0:01:45]} 23. Rf5 {[%clk 0:01:05]}  Nd3 {[%clk 0:01:31]} 24. Rc4 {[%clk 0:01:04]}  Nb2 {[%clk 0:01:12]} 25. Rxe4 {[%clk 0:00:36]}  Bxe4 {[%clk 0:00:50]} 26. Nxe4 {[%clk 0:00:37]}  Rd1+ {[%clk 0:00:49]} 27. Bxd1 {[%clk 0:00:35]}  Rxd1+ {[%clk 0:00:50]} 28. Kh2 {[%clk 0:00:35]}  Nd3 {[%clk 0:00:47]} 29. Kg3 {[%clk 0:00:29]}  Kg7 {[%clk 0:00:45]} 30. h4 {[%clk 0:00:26]}  Nc1 {[%clk 0:00:45]} 31. Ng5 {[%clk 0:00:23]}  f6 {[%clk 0:00:43]} 32. Ne6+ {[%clk 0:00:22]}  Kf7 {[%clk 0:00:43]} 33. Nf4 {[%clk 0:00:20]}  Nxa2 {[%clk 0:00:40]} 34. Nh5 {[%clk 0:00:18]}  Rd6 {[%clk 0:00:40]} 35. e4 {[%clk 0:00:18]}  Re6 {[%clk 0:00:36]} 36. f3 {[%clk 0:00:15]}  Nc1 {[%clk 0:00:36]} 37. b4 {[%clk 0:00:14]}  a6 {[%clk 0:00:33]} 38. Nf4 {[%clk 0:00:14]}  Rc6 {[%clk 0:00:28]} 39. e5 {[%clk 0:00:11]}  Ke7 {[%clk 0:00:19]} 40. exf6+ {[%clk 0:00:09]}  Kf7 {[%clk 0:00:19]} 41. Kg4 {[%clk 0:00:08]}  Na2 {[%clk 0:00:14]} 42. Kg5 {[%clk 0:00:06]}  Nxb4 {[%clk 0:00:13]} 43. Re5 {[%clk 0:00:06]}  Rxf6 {[%clk 0:00:09]} 44. Nh5 {[%clk 0:00:05]}  Rg6+ {[%clk 0:00:09]} 45. Kf5 {[%clk 0:00:05]}  Nc6 {[%clk 0:00:10]} 46. Re2 {[%clk 0:00:03]}  Nd4+ {[%clk 0:00:11]} 47. Ke5 {[%clk 0:00:02]}  Nxe2 {[%clk 0:00:11]} 48. g4 {[%clk 0:00:00]}  a5 {[%clk 0:00:11]} 0-1


[Site "https://www.chess.com"]

[Event "Titled Tuesday Blitz August 08 Early 2023"]
[White "Nava, Roderick"]
[Black "Cheer_Down"]
[WhiteFideId "5201730"]
[WhiteElo "2661"]
[BlackElo "2414"]
[Result "1-0"]
[Round "4"]
[TimeControl "180+1"]
[Date "2023.08.08"]
[WhiteClock "0:01:08"]
[BlackClock "0:00:46"]
[Board "154"]

1. e4 {[%clk 0:03:00]}  c5 {[%clk 0:02:58]} 2. Nc3 {[%clk 0:03:00]}  d6 {[%clk 0:02:58]} 3. f4 {[%clk 0:02:59]}  g6 {[%clk 0:02:57]} 4. Nf3 {[%clk 0:03:00]}  Bg7 {[%clk 0:02:57]} 5. Bc4 {[%clk 0:03:00]}  e6 {[%clk 0:02:56]} 6. O-O {[%clk 0:02:58]}  Nc6 {[%clk 0:02:54]} 7. f5 {[%clk 0:02:56]}  exf5 {[%clk 0:02:49]} 8. d3 {[%clk 0:02:55]}  Be6 {[%clk 0:02:35]} 9. Bxe6 {[%clk 0:02:41]}  fxe6 {[%clk 0:02:34]} 10. exf5 {[%clk 0:02:41]}  exf5 {[%clk 0:02:23]} 11. Re1+ {[%clk 0:02:37]}  Ne5 {[%clk 0:02:21]} 12. Bf4 {[%clk 0:02:32]}  Ne7 {[%clk 0:02:14]} 13. Kh1 {[%clk 0:02:10]}  N7c6 {[%clk 0:02:10]} 14. d4 {[%clk 0:02:07]}  cxd4 {[%clk 0:02:07]} 15. Nxd4 {[%clk 0:02:07]}  O-O {[%clk 0:02:06]} 16. Ne6 {[%clk 0:02:06]}  Qh4 {[%clk 0:02:02]} 17. Bg3 {[%clk 0:02:03]}  Qb4 {[%clk 0:01:57]} 18. Nxf8 {[%clk 0:02:02]}  Rxf8 {[%clk 0:01:51]} 19. Nd5 {[%clk 0:01:51]}  Qxb2 {[%clk 0:01:43]} 20. Rb1 {[%clk 0:01:51]}  Qxa2 {[%clk 0:01:43]} 21. Rxb7 {[%clk 0:01:50]}  f4 {[%clk 0:01:41]} 22. Nxf4 {[%clk 0:01:43]}  Kh8 {[%clk 0:01:11]} 23. Qxd6 {[%clk 0:01:27]}  Qxc2 {[%clk 0:00:54]} 24. Rxg7 {[%clk 0:01:10]}  Kxg7 {[%clk 0:00:46]} 25. Ne6+ {[%clk 0:01:08]} 1-0


[Site "https://www.chess.com"]

[Event "Titled Tuesday Blitz August 08 Early 2023"]
[White "Kleiman, Jake"]
[Black "Avazkhonov, Alikhon"]
[WhiteFideId "2020041"]
[BlackFideId "14208504"]
[WhiteElo "2643"]
[BlackElo "2409"]
[Result "1-0"]
[Round "4"]
[TimeControl "180+1"]
[Date "2023.08.08"]
[WhiteClock "0:00:30"]
[BlackClock "0:00:02"]
[Board "157"]

1. d4 {[%clk 0:03:00]}  d5 {[%clk 0:02:50]} 2. Bf4 {[%clk 0:02:59]}  e6 {[%clk 0:02:49]} 3. e3 {[%clk 0:02:58]}  Bd6 {[%clk 0:02:49]} 4. Bg3 {[%clk 0:02:58]}  Nf6 {[%clk 0:02:49]} 5. Nd2 {[%clk 0:02:57]}  O-O {[%clk 0:02:50]} 6. Bd3 {[%clk 0:02:56]}  c5 {[%clk 0:02:48]} 7. c3 {[%clk 0:02:56]}  Nc6 {[%clk 0:02:48]} 8. f4 {[%clk 0:02:55]}  b6 {[%clk 0:02:46]} 9. Ngf3 {[%clk 0:02:54]}  Bb7 {[%clk 0:02:44]} 10. O-O {[%clk 0:02:54]}  Ne7 {[%clk 0:02:42]} 11. Ne5 {[%clk 0:02:50]}  Nf5 {[%clk 0:02:37]} 12. Bf2 {[%clk 0:02:50]}  Be7 {[%clk 0:02:30]} 13. a4 {[%clk 0:02:38]}  a5 {[%clk 0:02:15]} 14. Kh1 {[%clk 0:02:30]}  Nd6 {[%clk 0:02:12]} 15. Bh4 {[%clk 0:02:24]}  Nfe4 {[%clk 0:01:57]} 16. Bxe7 {[%clk 0:02:23]}  Qxe7 {[%clk 0:01:57]} 17. Qe2 {[%clk 0:02:17]}  f6 {[%clk 0:01:51]} 18. Nef3 {[%clk 0:02:16]}  Nxd2 {[%clk 0:01:46]} 19. Qxd2 {[%clk 0:02:14]}  Ba6 {[%clk 0:01:45]} 20. Bxa6 {[%clk 0:02:12]}  Rxa6 {[%clk 0:01:46]} 21. Qe2 {[%clk 0:02:11]}  Raa8 {[%clk 0:01:46]} 22. Nd2 {[%clk 0:02:09]}  e5 {[%clk 0:01:44]} 23. fxe5 {[%clk 0:02:08]}  fxe5 {[%clk 0:01:45]} 24. dxc5 {[%clk 0:02:08]}  bxc5 {[%clk 0:01:40]} 25. e4 {[%clk 0:02:07]}  Qb7 {[%clk 0:01:25]} 26. exd5 {[%clk 0:01:59]}  Qxd5 {[%clk 0:01:26]} 27. Rfe1 {[%clk 0:01:47]}  e4 {[%clk 0:01:10]} 28. Rad1 {[%clk 0:01:44]}  Rae8 {[%clk 0:01:03]} 29. Nf1 {[%clk 0:01:37]}  Qc6 {[%clk 0:00:59]} 30. Ne3 {[%clk 0:01:36]}  Nf5 {[%clk 0:00:34]} 31. Qc4+ {[%clk 0:01:30]}  Kh8 {[%clk 0:00:29]} 32. Nxf5 {[%clk 0:01:16]}  Rxf5 {[%clk 0:00:28]} 33. Rxe4 {[%clk 0:01:11]}  Ref8 {[%clk 0:00:10]} 34. h3 {[%clk 0:01:04]}  h6 {[%clk 0:00:08]} 35. Rde1 {[%clk 0:00:59]}  Rf2 {[%clk 0:00:06]} 36. b3 {[%clk 0:00:52]}  Qg6 {[%clk 0:00:04]} 37. Rg4 {[%clk 0:00:52]}  Qc6 {[%clk 0:00:04]} 38. Rg3 {[%clk 0:00:41]}  Qc7 {[%clk 0:00:03]} 39. Qg4 {[%clk 0:00:35]}  Rf1+ {[%clk 0:00:03]} 40. Rxf1 {[%clk 0:00:35]}  Rxf1+ {[%clk 0:00:04]} 41. Kh2 {[%clk 0:00:36]}  Rc1 {[%clk 0:00:04]} 42. Qf3 {[%clk 0:00:30]}  Rb1 {[%clk 0:00:04]} 43. Qf8+ {[%clk 0:00:28]}  Kh7 {[%clk 0:00:04]} 44. Qf5+ {[%clk 0:00:29]}  Kh8 {[%clk 0:00:02]} 45. Qxb1 {[%clk 0:00:30]} 1-0


[Site "https://www.chess.com"]